bitfinex/quotes_BTCUSD_20251104
["timestamp","ask_amount","ask_price","bid_price","bid_amount"]
[1762284816967,1.47517522,101060.0,101050.0,0.08364842]
[1762284817212,1.47517522,101060.0,101050.0,0.28157024]
[1762284817452,1.56975128,101060.0,101050.0,0.28157024]
[1762284817865,1.5790027,101060.0,101050.0,0.24599024]
[1762284817988,1.48442664,101060.0,101050.0,0.29653024]
[1762284818187,1.47517522,101060.0,101050.0,0.29653024]
[1762284818386,1.48442673,101060.0,101050.0,0.29653024]
[1762284818588,1.32567522,101060.0,101050.0,0.24810842]
[1762284818791,1.32567522,101060.0,101050.0,0.44603024]
[1762284819000,1.33492701,101060.0,101050.0,0.24810842]
[1762284819198,1.53282924,101060.0,101050.0,0.24810842]
[1762284819848,1.33492701,101060.0,101050.0,0.24810842]
[1762284820066,1.53282924,101060.0,101050.0,0.24810842]
[1762284820259,1.33492701,101060.0,101050.0,0.24810842]
[1762284820678,1.53282924,101060.0,101050.0,0.09860842]
[1762284821072,1.60157891,101060.0,101050.0,0.04806842]
[1762284821276,1.53282924,101060.0,101050.0,0.05516842]
[1762284821511,1.33492701,101060.0,101050.0,0.30270024]
[1762284822107,1.32567522,101060.0,101050.0,0.30270024]
[1762284822326,1.32567522,101060.0,101050.0,0.40046629]
[1762284822524,1.32567522,101060.0,101050.0,0.30270024]
[1762284822821,1.42025128,101060.0,101050.0,0.30270024]
[1762284824007,1.61815351,101060.0,101050.0,0.10477842]
[1762284824386,1.42025128,101060.0,101050.0,0.30270024]
[1762284824599,1.32567522,101060.0,101050.0,0.30270024]
[1762284825275,1.32567522,101060.0,101050.0,0.10477842]
[1762284825457,1.52357745,101060.0,101050.0,0.10477842]
[1762284825658,1.53282963,101060.0,101050.0,0.05516842]
[1762284825860,1.3349274,101060.0,101050.0,0.01248842]
[1762284826061,1.62740569,101060.0,101050.0,0.05516842]
[1762284826278,1.62740569,101060.0,101050.0,0.10477842]
[1762284826777,1.62740569,101060.0,101050.0,0.30270024]
[1762284826778,1.35343302,101060.0,101050.0,0.30270024]
[1762284827198,1.3349274,101060.0,101050.0,1.23810092]
[1762284827327,1.32567522,101060.0,101050.0,1.62428319]
[1762284828655,1.32567522,101060.0,101050.0,0.93614856]
[1762284828866,1.33492814,101060.0,101050.0,0.88996629]
[1762284829273,1.33492814,101060.0,101050.0,0.45220024]
[1762284829666,1.41687909,101060.0,101050.0,0.45220024]
[1762284830409,1.33492814,101060.0,101050.0,0.45220024]
[1762284830857,1.33492814,101060.0,101050.0,1.23810092]
[1762284831048,1.32567522,101060.0,101050.0,1.23810092]
[1762284831266,1.32567522,101060.0,101050.0,1.57810092]
[1762284831602,1.33493209,101060.0,101050.0,1.57810092]
[1762284831811,1.32567522,101060.0,101050.0,1.57810092]
[1762284832070,1.32567522,101060.0,101050.0,0.88996629]
[1762284832255,1.33493222,101060.0,101050.0,0.54996629]
[1762284833736,1.33493222,101060.0,101050.0,0.25427842]
[1762284833953,1.33493222,101060.0,101050.0,0.29891842]
[1762284834147,1.33493222,101060.0,101050.0,0.59460629]
[1762284834395,1.12655834,101060.0,101050.0,0.59460629]
[1762284835466,1.12555834,101060.0,101050.0,0.59460629]
[1762284835665,1.11630134,101060.0,101050.0,1.6589232]
[1762284835801,1.11630134,101060.0,101050.0,1.6599232]
[1762284836011,1.11930134,101060.0,101050.0,1.6599232]
[1762284836434,1.11930134,101060.0,101050.0,1.66992319]
[1762284836615,1.11930134,101060.0,101050.0,1.67992318]
[1762284837017,1.11930134,101060.0,101050.0,1.75254827]
[1762284837375,1.11930134,101060.0,101050.0,1.77654827]
[1762284837762,0.5892639,101060.0,101050.0,1.60304827]
[1762284837974,0.27273552,101060.0,101050.0,1.62704827]
[1762284838171,0.24271576,101120.0,101100.0,0.19782298]
[1762284838376,0.02920254,101120.0,101100.0,0.19782209]
[1762284838573,0.22698735,101120.0,101110.0,0.06595]
[1762284838776,0.22698735,101120.0,101110.0,0.02327]
[1762284839348,0.22747,101120.0,101110.0,0.02327]
[1762284840133,0.22747,101120.0,101110.0,0.06595]
[1762284840134,0.23984521,101120.0,101110.0,0.06595]
[1762284840338,0.23984521,101120.0,101110.0,0.02327]
[1762284840476,0.24384521,101120.0,101110.0,0.02427]
[1762284841061,0.28789123,101120.0,101110.0,0.02427]
[1762284841279,0.24384123,101120.0,101110.0,0.02427]
[1762284841519,0.45152728,101120.0,101110.0,0.001]
[1762284841736,0.79152728,101120.0,101110.0,0.001]
[1762284842395,0.79152192,101120.0,101110.0,0.001]
[1762284842615,0.82022798,101120.0,101110.0,0.001]
[1762284842854,0.62788587,101120.0,101110.0,0.001]
[1762284843053,0.79152192,101120.0,101110.0,0.001]
[1762284843640,0.53782393,101100.0,101090.0,0.04464]
[1762284843874,0.81241727,101100.0,101090.0,0.04464]
[1762284844076,0.19786307,101080.0,101070.0,0.01521137]
[1762284844207,0.37111912,101080.0,101070.0,0.01521137]
[1762284844409,0.77698912,101080.0,101070.0,0.01521137]
[1762284844931,0.71111912,101080.0,101070.0,0.01521137]
[1762284845138,0.88082095,101080.0,101070.0,0.00025137]
[1762284845467,3.89933345,101080.0,101070.0,0.00025137]
[1762284846544,0.90633345,101080.0,101070.0,0.00025137]
[1762284846751,0.81175739,101080.0,101070.0,0.00025137]
[1762284846953,0.72737489,101080.0,101070.0,0.01521137]
[1762284847128,0.67406912,101080.0,101070.0,0.01521137]
[1762284847308,0.33406912,101080.0,101070.0,0.01521137]
[1762284847511,0.10476605,101080.0,101070.0,0.01521137]
[1762284847761,0.007,101080.0,101070.0,0.30538402]
[1762284848373,0.007,101080.0,101070.0,0.40315007]
[1762284848576,0.20771708,101100.0,101070.0,0.20526742]
[1762284848788,0.27917374,101100.0,101090.0,0.04268]
[1762284849006,0.00925292,101100.0,101090.0,0.2405235]
[1762284849207,0.22926196,101110.0,101090.0,0.2901335]
[1762284849412,0.22926196,101110.0,101070.0,0.16258742]
[1762284849413,0.25176512,101100.0,101070.0,0.16258742]
[1762284849620,0.25176512,101100.0,101070.0,0.06482137]
[1762284849621,0.19784833,101090.0,101070.0,0.06482137]
[1762284849827,0.19784833,101090.0,101070.0,0.16258742]
[1762284849828,0.19986307,101080.0,101070.0,0.16258742]
[1762284850036,0.19784833,101090.0,101070.0,0.16258742]
[1762284850236,0.19784833,101090.0,101080.0,0.09669]
[1762284850445,0.19786307,101080.0,101070.0,0.06922137]
[1762284850652,0.19786307,101080.0,101070.0,0.01521137]
[1762284850855,0.19786307,101080.0,101070.0,0.06166137]
[1762284851264,0.19786307,101080.0,101070.0,0.11567137]
[1762284851474,0.19686307,101080.0,101070.0,0.11567137]
[1762284852066,0.19686307,101080.0,101070.0,0.06166137]
[1762284852272,0.19686307,101080.0,101070.0,0.01521137]
[1762284852394,0.19786307,101080.0,101070.0,0.01521137]
[1762284852600,0.19786307,101080.0,101070.0,0.06166137]
[1762284852809,0.19886307,101080.0,101070.0,0.11567137]
[1762284853022,0.19886307,101080.0,101070.0,0.06166137]
[1762284853461,0.19886307,101080.0,101070.0,0.11567137]
[1762284853881,0.001,101080.0,101070.0,0.31355402]
[1762284854080,0.001,101080.0,101070.0,0.11567137]
[1762284854430,0.001,101080.0,101070.0,0.41132007]
[1762284855259,0.001,101080.0,101070.0,0.21343742]
[1762284855466,0.001,101080.0,101070.0,0.41132007]
[1762284855944,0.19886307,101080.0,101070.0,0.11567137]
[1762284856144,0.19886307,101080.0,101070.0,0.01521137]
[1762284856342,0.24207589,101080.0,101070.0,0.06166137]
[1762284857136,0.24207589,101080.0,101070.0,0.01521137]
[1762284857371,0.24107589,101080.0,101070.0,0.01521137]
[1762284857543,0.20086307,101080.0,101070.0,0.11567137]
[1762284857759,0.003,101080.0,101070.0,0.31355402]
[1762284858114,0.003,101080.0,101070.0,0.41132007]
[1762284858523,0.003,101080.0,101070.0,1.47563698]
[1762284859153,0.003,101080.0,101070.0,0.78750235]
[1762284859356,0.19784363,101090.0,101070.0,0.44750235]
[1762284859555,0.20771516,101100.0,101090.0,0.02767]
[1762284859765,0.25117225,101100.0,101090.0,0.07412]
[1762284860426,0.20707654,101100.0,101090.0,0.07412]
[1762284860841,0.21107654,101100.0,101090.0,0.07412]
[1762284861340,0.22958455,101100.0,101090.0,0.07412]
[1762284862154,0.01325261,101100.0,101090.0,0.3259735]
[1762284862605,0.004,101100.0,101090.0,0.3259735]
[1762284863163,0.004,101100.0,101090.0,0.42373955]
[1762284863623,0.65923581,101120.0,101100.0,0.19780865]
[1762284863624,0.53920549,101120.0,101100.0,0.19780865]
[1762284863818,0.02966351,101120.0,101110.0,0.05784]
[1762284864050,0.02966351,101120.0,101110.0,0.40803923]
[1762284864184,0.02966351,101120.0,101110.0,0.40742042]
[1762284864384,0.0111566,101120.0,101110.0,0.40742042]
[1762284864825,0.0111566,101120.0,101110.0,0.11185]
[1762284865031,0.20894141,101120.0,101110.0,0.11185]
[1762284865411,0.21394141,101120.0,101110.0,0.11285]
[1762284865614,0.0161566,101120.0,101110.0,0.30965437]
[1762284866016,0.0191566,101120.0,101110.0,0.31065437]
[1762284866216,0.21694141,101120.0,101110.0,0.11285]
[1762284866419,0.32477559,101120.0,101110.0,0.001]
[1762284866625,0.27976263,101120.0,101110.0,0.01239]
[1762284866892,0.34878263,101120.0,101110.0,0.01239]
[1762284867051,0.34878263,101120.0,101110.0,0.001]
[1762284867052,0.78654868,101120.0,101110.0,0.001]
[1762284868223,0.19782393,101100.0,101090.0,0.02767]
[1762284868421,0.20707738,101100.0,101090.0,0.02767]
[1762284868836,0.20707738,101100.0,101090.0,0.07412]
[1762284869241,0.19782213,101110.0,101090.0,0.3259735]
[1762284869446,0.56558093,101110.0,101100.0,0.04645]
[1762284869729,0.22556317,101110.0,101100.0,0.04645]
[1762284869943,0.22556317,101110.0,101100.0,0.10046]
[1762284870147,0.0277588,101110.0,101100.0,0.29828393]
[1762284870363,0.00925293,101110.0,101100.0,0.98641856]
[1762284870736,0.20765642,101130.0,101110.0,0.11185]
[1762284870954,0.22630553,101130.0,101120.0,0.04645]
[1762284871164,0.21641436,101130.0,101120.0,0.04645]
[1762284871371,0.21641436,101130.0,101120.0,0.10046]
[1762284871794,0.21666551,101130.0,101120.0,0.10046]
[1762284872016,0.21866551,101130.0,101120.0,0.04645]
[1762284872248,0.01890026,101130.0,101120.0,0.29178481]
[1762284872496,0.01890026,101130.0,101120.0,0.97991944]
[1762284872692,0.00439588,101130.0,101120.0,1.32091944]
[1762284872944,0.23350806,101170.0,101150.0,0.19772607]
[1762284873151,0.21672568,101170.0,101150.0,0.24088607]
[1762284873395,0.21672568,101170.0,101160.0,0.04316]
[1762284874404,0.01903795,101170.0,101160.0,0.2840266]
[1762284874934,0.01903795,101170.0,101160.0,1.31216123]
[1762284875171,0.01903795,101170.0,101160.0,0.66020888]
[1762284875390,0.01903795,101170.0,101160.0,1.34834351]
[1762284875928,0.01903795,101170.0,101160.0,2.06834916]
[1762284875929,0.00654489,101170.0,101160.0,2.06834916]
[1762284876182,0.00054489,101170.0,101160.0,2.06634916]
[1762284876435,0.00054489,101170.0,101160.0,1.37821453]
[1762284876674,0.00054489,101170.0,101160.0,1.45317737]
[1762284877608,0.00054489,101170.0,101160.0,0.79968275]
[1762284877817,0.00054489,101170.0,101160.0,1.46794635]
[1762284878051,0.00054489,101170.0,101160.0,0.77981172]
[1762284878267,0.00054489,101170.0,101160.0,1.47794634]
[1762284878479,0.00154489,101170.0,101160.0,0.79481171]
[1762284878697,0.00154489,101170.0,101160.0,1.48294634]
[1762284878929,0.00154489,101170.0,101160.0,1.46794635]
[1762284879147,0.00354906,101170.0,101160.0,0.3326666]
[1762284879381,0.00354906,101170.0,101160.0,0.6726666]
[1762284880476,0.00154906,101170.0,101160.0,0.6686666]
[1762284880715,0.00254906,101170.0,101160.0,0.6726666]
[1762284880909,0.00154906,101170.0,101160.0,0.6686666]
[1762284881239,0.00354906,101170.0,101160.0,0.6696666]
[1762284881639,0.20123612,101170.0,101160.0,0.47196]
[1762284881967,0.00354906,101170.0,101160.0,0.6696666]
[1762284882372,0.00354906,101170.0,101160.0,0.47196]
[1762284882573,0.00354906,101170.0,101160.0,0.6696666]
[1762284883140,0.19767213,101180.0,101160.0,0.47916535]
[1762284883341,0.19767213,101180.0,101170.0,0.10002]
[1762284884179,0.19767213,101180.0,101170.0,0.05767]
[1762284884393,0.19867213,101180.0,101170.0,0.05767]
[1762284884603,0.19767213,101180.0,101170.0,0.05767]
[1762284885046,0.19867213,101180.0,101170.0,0.05867]
[1762284885425,0.19867213,101180.0,101170.0,0.01648]
[1762284885633,0.19867213,101180.0,101170.0,0.05867]
[1762284887001,0.19867213,101180.0,101170.0,0.10102]
[1762284888100,0.19867213,101180.0,101170.0,0.05867]
[1762284888511,0.001,101180.0,101170.0,0.29870706]
[1762284888935,0.00125097,101180.0,101170.0,0.29870706]
[1762284889548,0.19891849,101180.0,101170.0,0.10102]
[1762284890207,0.24076849,101180.0,101170.0,0.01648]
[1762284890416,0.30379849,101180.0,101170.0,0.01648]
[1762284890623,0.19891849,101180.0,101170.0,0.01648]
[1762284890874,0.19891849,101180.0,101170.0,0.05867]
[1762284891836,0.24076849,101180.0,101170.0,0.01648]
[1762284892051,0.30379849,101180.0,101170.0,0.001]
[1762284892261,0.40156454,101180.0,101170.0,0.001]
[1762284892701,0.33853454,101180.0,101170.0,0.001]
[1762284893104,0.29668454,101180.0,101170.0,0.001]
[1762284893317,0.29668454,101180.0,101170.0,0.04319]
[1762284893530,0.29668454,101180.0,101170.0,0.001]
[1762284893678,0.33853454,101180.0,101170.0,0.001]
[1762284893893,0.40156454,101180.0,101170.0,0.001]
[1762284894098,0.29668454,101180.0,101170.0,0.001]
[1762284895028,0.33853454,101180.0,101170.0,0.001]
[1762284895999,0.19891849,101180.0,101170.0,0.04319]
[1762284898209,0.40156454,101180.0,101170.0,0.001]
[1762284898477,0.41996039,101180.0,101170.0,0.001]
[1762284898707,0.21731434,101180.0,101170.0,0.04319]
[1762284898921,0.19891849,101180.0,101170.0,0.04319]
[1762284899357,0.25918273,101180.0,101170.0,0.001]
[1762284900177,0.32221273,101180.0,101170.0,0.001]
[1762284900435,0.22654829,101180.0,101170.0,0.001]
[1762284900878,0.26839829,101180.0,101170.0,0.001]
[1762284901327,0.47312201,101180.0,101170.0,0.001]
[1762284901546,0.84930429,101180.0,101170.0,0.001]
[1762284901766,3.84930429,101180.0,101170.0,0.001]
[1762284902434,0.19772614,101150.0,101140.0,0.01548]
[1762284902647,0.19772614,101150.0,101140.0,0.01562489]
[1762284902891,0.19772614,101150.0,101140.0,0.00014489]
[1762284902892,0.38401779,101150.0,101140.0,0.00014489]
[1762284903116,0.75172175,101150.0,101140.0,0.00014489]
[1762284903774,3.83250403,101150.0,101140.0,0.00014489]
[1762284903986,3.83250403,101150.0,101140.0,0.00114489]
[1762284904236,3.83350403,101150.0,101140.0,0.00014489]
[1762284904490,0.19774569,101140.0,101130.0,0.00141982]
[1762284904729,0.19774569,101140.0,101090.0,0.01549]
[1762284904730,0.19782393,101100.0,101090.0,0.01549]
[1762284904939,0.19785484,101090.0,101080.0,0.01549]
[1762284905164,0.19785484,101090.0,101080.0,0.01597265]
[1762284905393,0.19785484,101090.0,101080.0,0.01722909]
[1762284905394,0.22994484,101090.0,101080.0,0.01722909]
[1762284905625,0.38810284,101090.0,101080.0,0.00173909]
[1762284905854,0.33961498,101090.0,101080.0,0.00173909]
[1762284906192,0.001,101090.0,101080.0,0.30160416]
[1762284906400,0.001,101090.0,101080.0,0.28415159]
[1762284906887,0.002,101090.0,101080.0,0.28815159]
[1762284907137,0.04360244,101120.0,101100.0,0.19781075]
[1762284907381,0.23431939,101140.0,101120.0,0.19778481]
[1762284907614,0.33748914,101140.0,101130.0,0.01548]
[1762284907898,0.23972309,101140.0,101130.0,0.01548]
[1762284908110,0.03209,101150.0,101130.0,0.25543525]
[1762284908320,0.03209,101150.0,101130.0,0.29779525]
[1762284908321,0.24825665,101150.0,101130.0,0.29779525]
[1762284908533,0.19772655,101150.0,101130.0,0.29779525]
[1762284908746,0.19772655,101150.0,101130.0,0.29779385]
[1762284909180,0.22981655,101150.0,101130.0,0.05767]
[1762284909398,0.19774569,101140.0,101130.0,0.01548]
[1762284909613,0.19974569,101140.0,101130.0,0.01548]
[1762284909855,0.33936174,101140.0,101130.0,0.01548]
[1762284910084,0.19778481,101120.0,101110.0,0.01139]
[1762284910282,0.22895481,101120.0,101110.0,0.01153473]
[1762284910735,0.26746481,101120.0,101110.0,0.01153473]
[1762284911204,0.60746481,101120.0,101110.0,0.00014473]
[1762284911415,0.56895481,101120.0,101110.0,0.00014473]
[1762284911850,0.19778481,101120.0,101110.0,0.03544473]
[1762284912291,0.19978481,101120.0,101110.0,0.03544473]
[1762284912736,0.29186338,101120.0,101110.0,0.00064715]
[1762284912945,0.78748943,101120.0,101110.0,0.00064715]
[1762284913372,0.82367171,101120.0,101110.0,0.00064715]
[1762284914292,0.19786307,101080.0,101070.0,0.06009]
[1762284914506,0.19786307,101080.0,101070.0,0.01597265]
[1762284914507,0.22903307,101080.0,101070.0,0.01597265]
[1762284914721,0.30814052,101080.0,101070.0,0.00048265]
[1762284914945,0.30814052,101080.0,101070.0,0.001488]
[1762284915157,0.26963052,101080.0,101070.0,0.001488]
[1762284915383,0.26754307,101080.0,101070.0,0.001488]
[1762284915611,0.43515784,101080.0,101070.0,0.001488]
[1762284915840,0.77515784,101080.0,101070.0,0.001488]
[1762284916060,0.77715784,101080.0,101070.0,0.001488]
[1762284916509,0.77715784,101080.0,101060.0,0.16792969]
[1762284916510,0.68078784,101080.0,101060.0,0.16792969]
[1762284916736,0.76764193,101080.0,101060.0,0.16807384]
[1762284916952,0.19788265,101070.0,101060.0,0.16807384]
[1762284917147,0.63870588,101080.0,101060.0,0.18029685]
[1762284917417,0.62671716,101080.0,101070.0,0.0353]
[1762284917626,0.08885409,101080.0,101070.0,0.23318265]
[1762284917852,0.25053822,101090.0,101070.0,0.26848265]
[1762284918118,0.002,101080.0,101070.0,0.23318265]
[1762284918324,0.002,101080.0,101070.0,0.19788265]
[1762284918542,0.002,101080.0,101070.0,0.26848265]
[1762284918786,0.24063199,101090.0,101070.0,0.26848265]
[1762284919003,0.33520805,101090.0,101070.0,0.26848265]
[1762284919222,0.19786307,101080.0,101060.0,0.19804476]
[1762284919445,0.19786307,101080.0,101060.0,0.19804638]
[1762284919668,0.19788265,101070.0,101060.0,0.00014415]
[1762284919880,0.19986307,101080.0,101060.0,0.19804638]
[1762284920095,0.19788265,101070.0,101060.0,0.03544415]
[1762284920314,0.19788265,101070.0,101060.0,0.00014415]
[1762284920536,0.06228233,101080.0,101070.0,0.19788265]
[1762284920755,0.002,101080.0,101070.0,0.23318265]
[1762284920970,0.34510022,101090.0,101070.0,0.0353]
[1762284921188,0.36451705,101090.0,101070.0,0.26848265]
[1762284921378,0.35290191,101090.0,101070.0,0.26848265]
[1762284921593,0.36440718,101090.0,101070.0,0.26848265]
[1762284921838,0.19786307,101080.0,101060.0,0.20794149]
[1762284922048,0.2598761,101080.0,101060.0,0.24324149]
[1762284922271,0.10608133,101090.0,101070.0,0.26848265]
[1762284922490,0.002,101080.0,101070.0,0.3309487]
[1762284922705,0.002,101080.0,101070.0,0.3662487]
[1762284923436,0.002,101080.0,101070.0,1.71669681]
[1762284924102,0.001,101090.0,101080.0,0.19786307]
[1762284924321,0.001,101090.0,101080.0,0.23316307]
[1762284924535,0.001,101090.0,101080.0,0.26846307]
[1762284924764,0.20912046,101110.0,101090.0,0.19783752]
[1762284924982,0.20912046,101110.0,101100.0,0.25294393]
[1762284924983,0.01982737,101110.0,101100.0,0.25294393]
[1762284925414,0.01982737,101110.0,101100.0,0.28824393]
[1762284925851,0.00142068,101110.0,101100.0,1.55786976]
[1762284926066,0.00142068,101110.0,101100.0,1.60250976]
[1762284926270,0.00142068,101110.0,101100.0,1.6780289]
[1762284926510,0.00142068,101110.0,101100.0,0.67288393]
[1762284927183,0.00342068,101110.0,101100.0,0.67288393]
[1762284927956,0.00279532,101110.0,101100.0,0.67288393]
[1762284928765,0.20059969,101110.0,101100.0,0.13506]
[1762284928979,0.25886851,101110.0,101100.0,0.06446]
[1762284929159,0.1978435,101090.0,101070.0,0.35071387]
[1762284929358,0.20773257,101100.0,101080.0,0.01982]
[1762284929590,0.1978435,101090.0,101080.0,0.05512]
[1762284929790,0.2290135,101090.0,101080.0,0.01982]
[1762284929990,0.32987771,101090.0,101080.0,0.01982]
[1762284930136,0.32987771,101090.0,101070.0,0.24252265]
[1762284930343,0.29136771,101090.0,101070.0,0.27782265]
[1762284930557,0.002,101090.0,101080.0,0.28059688]
[1762284930771,0.23890257,101100.0,101080.0,0.26846307]
[1762284930772,0.20773257,101100.0,101080.0,0.26846307]
[1762284930999,0.1998435,101090.0,101080.0,0.26846307]
[1762284931214,0.002,101090.0,101080.0,0.26846307]
[1762284931454,0.1998435,101090.0,101080.0,0.0353]
[1762284931673,0.19786307,101080.0,101070.0,0.075]
[1762284931884,0.19786307,101080.0,101070.0,0.04464]
[1762284932317,0.19786307,101080.0,101060.0,0.20804764]
[1762284932318,0.19788265,101070.0,101060.0,0.19815364]
[1762284932523,0.19786307,101080.0,101060.0,0.22865779]
[1762284932744,0.19786307,101080.0,101060.0,0.25901779]
[1762284932961,0.19788265,101070.0,101060.0,0.06111556]
[1762284933204,0.19788265,101070.0,101060.0,0.03075556]
[1762284933422,0.19788265,101070.0,101060.0,0.22865779]
[1762284933664,0.04762364,101080.0,101070.0,0.19788265]
[1762284933909,0.2487151,101080.0,101070.0,0.03036]
[1762284934580,0.2487151,101080.0,101070.0,0.22824265]
[1762284934779,0.2487151,101080.0,101070.0,0.03036]
[1762284935201,0.19788265,101070.0,101060.0,0.00039556]
[1762284936238,0.24389455,101080.0,101060.0,0.25901779]
[1762284936385,0.19788265,101070.0,101060.0,0.06111556]
[1762284936636,0.24570487,101070.0,101060.0,0.03075556]
[1762284936832,0.24570487,101070.0,101060.0,0.22865779]
[1762284937028,0.24570487,101070.0,101060.0,0.03075556]
[1762284937518,0.04782222,101070.0,101060.0,0.25901779]
[1762284937658,0.24570487,101070.0,101060.0,0.25901779]
[1762284937875,0.002,101070.0,101060.0,0.25901779]
[1762284938683,0.002,101070.0,101060.0,0.22865779]
[1762284938887,0.19988265,101070.0,101060.0,0.03075556]
[1762284939088,0.002,101070.0,101060.0,0.25901779]
[1762284939484,0.002,101070.0,101060.0,1.62640967]
[1762284939920,0.002,101070.0,101060.0,0.69678384]
[1762284940503,0.19786351,101080.0,101070.0,0.19788265]
[1762284940706,0.250457,101090.0,101070.0,0.19788265]
[1762284940908,0.0277009,101090.0,101080.0,0.22591307]
[1762284941082,0.0277009,101090.0,101080.0,0.25396307]
[1762284941754,0.00923363,101090.0,101080.0,0.25396307]
[1762284942790,0.22555852,101090.0,101080.0,0.25396307]
[1762284943001,0.01023363,101090.0,101080.0,0.25796307]
[1762284943423,0.02872252,101090.0,101080.0,0.25796307]
[1762284945520,0.001,101090.0,101080.0,0.25796307]
[1762284947707,0.001,101090.0,101080.0,1.07966633]
[1762284948341,0.001,101090.0,101080.0,1.04348405]
[1762284948551,0.001,101090.0,101080.0,0.35572912]
[1762284948789,0.00079532,101110.0,101100.0,0.19782393]
[1762284949003,0.00079532,101110.0,101100.0,1.09664491]
[1762284949673,0.00079532,101110.0,101100.0,0.04061]
[1762284949674,0.20784854,101110.0,101100.0,0.04061]
[1762284949883,0.33732001,101110.0,101100.0,0.01256]
[1762284950095,0.33732001,101110.0,101090.0,0.01256]
[1762284950096,0.19783842,101100.0,101090.0,0.01256]
[1762284950544,0.19783842,101100.0,101090.0,0.04061]
[1762284950545,0.22558916,101100.0,101090.0,0.04061]
[1762284951174,0.22558916,101100.0,101090.0,0.06866]
[1762284951381,0.22558916,101100.0,101090.0,0.04061]
[1762284951586,0.27613838,101100.0,101090.0,0.04061]
[1762284952666,0.27713838,101100.0,101090.0,0.04161]
[1762284953078,0.02875074,101100.0,101090.0,0.2675035]
[1762284953291,0.01025024,101100.0,101090.0,0.2675035]
[1762284953505,0.20807417,101100.0,101090.0,0.2675035]
[1762284954129,0.20807417,101100.0,101090.0,0.04161]
[1762284954341,0.20807417,101100.0,101090.0,0.06966]
[1762284954545,0.23738458,101110.0,101090.0,0.04161]
[1762284954755,0.31579317,101110.0,101090.0,0.04161]
[1762284954986,0.19836805,101100.0,101090.0,0.04161]
[1762284955177,0.21687099,101100.0,101090.0,0.04161]
[1762284955386,0.21687099,101100.0,101090.0,0.06966]
[1762284955387,0.19836805,101100.0,101090.0,0.06966]
[1762284955612,0.19836805,101100.0,101090.0,0.04161]
[1762284955830,0.19836805,101100.0,101090.0,0.04061]
[1762284956041,0.19836805,101100.0,101090.0,0.06866]
[1762284956252,0.19836805,101100.0,101090.0,0.04161]
[1762284956467,0.19836805,101100.0,101090.0,0.04061]
[1762284956917,0.19936805,101100.0,101090.0,0.04161]
[1762284957555,0.19936805,101100.0,101090.0,0.2394535]
[1762284957768,0.19936805,101100.0,101090.0,0.2675035]
[1762284957989,0.19936805,101100.0,101090.0,0.2394535]
[1762284958197,0.19936805,101100.0,101090.0,0.2675035]
[1762284958624,0.19936805,101100.0,101090.0,0.06966]
[1762284958837,0.28303395,101100.0,101090.0,0.04161]
[1762284959076,0.30154684,101100.0,101090.0,0.04161]
[1762284959300,0.30154684,101100.0,101090.0,0.001]
[1762284959301,0.49340289,101100.0,101090.0,0.001]
[1762284959548,0.49340289,101100.0,101090.0,0.01356]
[1762284960402,0.49340289,101100.0,101090.0,0.001]
[1762284960858,0.83340289,101100.0,101090.0,0.001]
[1762284961530,0.55788094,101100.0,101090.0,0.0521]
[1762284961743,0.21788094,101100.0,101090.0,0.02405]
[1762284961975,0.1978435,101090.0,101080.0,0.01256]
[1762284962193,0.19788145,101080.0,101060.0,0.23184337]
[1762284962413,0.19788145,101080.0,101070.0,0.02405]
[1762284962414,0.19738145,101080.0,101070.0,0.02405]
[1762284962631,0.19788265,101070.0,101060.0,0.00014415]
[1762284962841,0.22757265,101070.0,101060.0,0.00014415]
[1762284963058,0.26713265,101070.0,101060.0,0.00014415]
[1762284963446,0.32166265,101070.0,101060.0,0.00014415]
[1762284963690,3.66166265,101070.0,101060.0,0.00014415]
[1762284963914,0.77475678,101070.0,101060.0,0.00014415]
[1762284964119,0.75623871,101070.0,101060.0,0.00014415]
[1762284964836,3.77575227,101070.0,101060.0,0.00114415]
[1762284965052,3.81093455,101070.0,101060.0,0.00014415]
[1762284965270,3.84493454,101070.0,101060.0,0.00014415]
[1762284965483,3.84793454,101070.0,101060.0,0.00114415]
[1762284965705,3.87393454,101070.0,101060.0,1e-08]
[1762284965929,0.68317621,101070.0,101060.0,1e-08]
[1762284966156,0.66466265,101070.0,101060.0,1e-08]
[1762284966380,0.23057265,101070.0,101060.0,1e-08]
[1762284966593,0.32466265,101070.0,101060.0,1e-08]
[1762284966813,0.23057265,101070.0,101060.0,1e-08]
[1762284967030,0.25796477,101070.0,101060.0,1e-08]
[1762284967289,0.29752477,101070.0,101060.0,1e-08]
[1762284967510,0.69205477,101070.0,101060.0,1e-08]
[1762284967737,3.7198111,101070.0,101060.0,1e-08]
[1762284967950,0.7198111,101070.0,101060.0,1e-08]
[1762284968163,3.7198111,101070.0,101060.0,1e-08]
[1762284968374,0.7198111,101070.0,101060.0,1e-08]
[1762284969012,3.7198111,101070.0,101060.0,1e-08]
[1762284969432,3.69205477,101070.0,101060.0,1e-08]
[1762284969660,0.69205477,101070.0,101060.0,1e-08]
[1762284969885,3.69205477,101070.0,101060.0,1e-08]
[1762284972220,0.69205477,101070.0,101060.0,1e-08]
[1762284972874,3.69205477,101070.0,101060.0,1e-08]
[1762284973673,0.69205477,101070.0,101060.0,1e-08]
[1762284974546,3.69205477,101070.0,101060.0,1e-08]
[1762284978722,0.61013265,101070.0,101060.0,1e-08]
[1762284979075,0.27013265,101070.0,101060.0,1e-08]
[1762284979279,0.66763265,101070.0,101060.0,1e-08]
[1762284979646,0.32763265,101070.0,101060.0,1e-08]
[1762284979853,0.66763265,101070.0,101060.0,1e-08]
[1762284980051,0.76220871,101070.0,101060.0,1e-08]
[1762284980685,0.19790223,101060.0,101050.0,0.01031]
[1762284980885,0.19804691,101060.0,101050.0,0.01031]
[1762284981584,0.23492691,101060.0,101050.0,0.01031]
[1762284981781,0.29242691,101060.0,101050.0,0.01031]
[1762284981958,0.38700297,101060.0,101050.0,0.01031]
[1762284982163,0.33050297,101060.0,101050.0,0.01131]
[1762284982424,0.72800297,101060.0,101050.0,0.0012]
[1762284982831,0.82576902,101060.0,101050.0,0.0012]
[1762284983800,0.52665169,101060.0,101050.0,0.0012]
[1762284984005,0.66705392,101060.0,101050.0,0.0012]
[1762284984156,0.72455392,101060.0,101050.0,0.0012]
[1762284985794,0.66705392,101060.0,101050.0,0.0012]
[1762284986171,0.62678787,101060.0,101050.0,0.0012]
[1762284986371,0.80998997,101060.0,101050.0,0.0012]
[1762284987776,0.72455392,101060.0,101050.0,0.0012]
[1762284988802,0.72455392,101060.0,101050.0,0.1507]
[1762284990445,3.72455392,101060.0,101040.0,0.0002]